Cogmind - Beta 9.6 @@@ ROGUE MODE // 2020.09.09 @ 02:25:29 // Winter2019/RPGLIKE Player: Hermelin Result: Destroyed by as-88456 with Assembled Focal Cannon Performance ------------- Evolutions (3) 1500 Regions Visited (10) 2000 Robots Destroyed (99) 495 Value Destroyed (3007) 3007 Prototype IDs (53) 1060 Alien Tech Used (0) 0 Bonus (1500) 1500 TOTAL SCORE: 9562 Bonus ------- High Alert Combat Kills 468 Follower Combat Kills 244 Met Imprinter 300 Destroyed Z-Imprinter 1000 Friendly Fire -512 Cogmind --------- Core Integrity 0/1550 Matter 222/300 Energy 1100/1100 System Corruption 0% Temperature Cool (6) Movement Hovering (52) Location -7/Deep Caves Parts ------- > --- POWER (2) -------- Zionite Light DM Reactor Zionite Light DM Reactor > --- PROPULSION (4) --- Zionite Glidesys I Zionite Glidesys II Zionite Glidesys II > --- UTILITY (8) ------ Experimental Heat Sink Experimental Heat Sink Zionite Biocell Modified TNC Improved Salvage Targeting Computer Core Analyzer Improved Maneuvering Thrusters > --- WEAPON (3) ------- Gauss Rifle > --- INVENTORY (4) ---- Surveybot 24 Scanner Surveybot 24 Chip Heavy Rocket Launcher Peak State ------------ > --- POWER ------------ Zionite Light DM Reactor Zionite Light DM Reactor > --- PROPULSION ------- Zionite Glidesys I Zionite Glidesys I Zionite Glidesys II Zionite Glidesys II > --- UTILITY ---------- Experimental Heat Sink Experimental Heat Sink Zionite Biocell Modified TNC Improved Salvage Targeting Computer Core Analyzer Zionite Heavy Carapace > --- WEAPON ----------- Arc Projector Zionite Laser-M Gauss Rifle > --- INVENTORY -------- Surveybot 24 Scanner Surveybot 24 Chip Improved Maneuvering Thrusters Heavy Rocket Launcher [Rating: 108] Favorites ----------- Power Makeshift Power Source Engine Makeshift Power Source Power Core Light Nuclear Core Reactor Zionite Light DM Reactor Propulsion Improved VTOL Module Treads Light Treads Wheel Wheel Hover Unit Zionite Glidesys II Flight Unit Improved VTOL Module Utility Makeshift System Shield Device Advanced Terrain Scanner Storage Zionite Biocell Processor Modified TNC Hackware Makeshift System Shield Protection Improved Light Armor Plating Weapon Gauss Rifle Energy Gun Arc Projector Ballistic Gun Gauss Rifle Launcher Rocket Launcher Impact Weapon Hammer Slashing Weapon Phasing Sabre Build | -11 -10 -10 -10 -9 -8 -7 -7 -7 -7 -7 ------- Run | Scr Mat Min Exi Min Mat Fac Low Low Zio Dee Slots Evolved 13 | 3 . . 2 . 5 2 . 1 . . Power 1 | . . . . . 1 . . . . . Propulsion 3 | 1 . . . . 1 1 . . . . Utility 7 | 1 . . 2 . 2 1 . 1 . . Weapon 2 | 1 . . . . 1 . . . . . Parts Attached 83 | 7 10 4 7 . 18 9 . 4 4 20 Power 13 | 1 2 . 1 . 1 2 . 2 1 3 Engine 6 | 1 . . 1 . 1 1 . 1 1 . Core 4 | . 2 . . . . 1 . 1 . . Reactor 3 | . . . . . . . . . . 3 Propulsion 26 | 2 5 3 . . 8 3 . . . 5 Treads 1 | 1 . . . . . . . . . . Leg . | . . . . . . . . . . . Wheel 1 | 1 . . . . . . . . . . Hover 7 | . 2 . . . . . . . . 5 Flight 17 | . 3 3 . . 8 3 . . . . Utility 23 | 2 . . 3 . 4 3 . 2 1 8 Device 9 | 1 . . . . 2 1 . 1 . 4 Storage 1 | . . . . . . . . . . 1 Processor 4 | 1 . . 1 . 1 . . . 1 . Hackware 3 | . . . 2 . . . . 1 . . Protection 6 | . . . . . 1 2 . . . 3 Artifact . | . . . . . . . . . . . Weapon 21 | 2 3 1 3 . 5 1 . . 2 4 Energy Gun 9 | 1 1 . 3 . 1 1 . . . 2 Energy Cannon . | . . . . . . . . . . . Ballistic Gun 7 | 1 . 1 . . 3 . . . 1 1 Ballistic Cannon . | . . . . . . . . . . . Launcher 3 | . 1 . . . 1 . . . . 1 Special Weapon . | . . . . . . . . . . . Impact Weapon 1 | . 1 . . . . . . . . . Slashing Weapon 1 | . . . . . . . . . 1 . Piercing Weapon . | . . . . . . . . . . . Special Melee Weapon . | . . . . . . . . . . . Unidentified Prototypes 13 | . . . . . 4 . . . . 9 Parts Lost 9 | . . . . . . 1 . . . 8 Power 2 | . . . . . . 1 . . . 1 Propulsion 1 | . . . . . . . . . . 1 Utility 4 | . . . . . . . . . . 4 Weapon 2 | . . . . . . . . . . 2 Highest Loss Streak 4 | . . . . . . 1 . . . 4 Average Slot Usage (%) 98 | . 98 100 98 100 95 97 100 100 100 94 Engine 8 | . 8 . 8 11 10 10 6 8 11 2 Core 2 | . 4 14 2 . . . 6 2 . . Reactor 1 | . . . . . . . . . . 7 Hover 3 | . 8 . . . . . . . . 16 Flight 20 | . 19 28 23 22 22 22 25 23 23 6 Device 11 | . 14 14 11 11 10 9 12 12 11 11 Processor 13 | . 14 14 11 11 12 13 12 11 12 17 Hackware 11 | . . . 15 22 16 13 12 14 16 3 Protection 2 | . . . . . . 6 6 5 5 4 Energy Gun 10 | . 13 14 17 22 8 6 6 5 5 8 Ballistic Gun 8 | . 12 14 5 . 13 13 12 11 6 4 Naked Turns . | . . . . . . . . . . . Heaviest Build 46 | 7 11 9 10 10 19 28 28 29 26 46 Greatest Support 105 | 25 17 13 13 13 23 29 29 29 29 105 Greatest Overweight (x) 1 | . . . . . . 1 . . . 1 Average Overweight (x) . | . . . . . . . . . . . Largest Inventory Capacity 4 | 2 2 3 3 3 4 4 4 4 4 4 Average Capacity 3 | 1 2 2 3 3 3 4 4 4 4 4 Most Carried 4 | . 2 3 3 3 4 4 4 4 4 4 Average Carried 3 | . 1 2 2 2 3 3 3 4 3 3 Final Capacity 4 | 2 2 3 3 3 4 4 4 4 4 4 Final Carried 4 | . 2 3 3 3 3 4 4 4 4 3 Class Distribution -------------------- 70% | Hacker-Scout 18% | Scavenger-Mutant 3% | Mutant 3% | Scavenger-Scout Dominant Class ---------------- Scavenger-Mutant | -10/Materials Scavenger-Mutant | -10/Mines Hacker-Scout | -10/Exiles Hacker-Scout | -9/Mines Hacker-Scout | -8/Materials Hacker-Scout | -7/Factory Hacker-Scout | -7/Lower Caves Hacker-Scout | -7/Lower Caves Hacker-Scout | -7/Zion Scavenger-Mutant | -7/Deep Caves Resources | -11 -10 -10 -10 -9 -8 -7 -7 -7 -7 -7 ----------- Run | Scr Mat Min Exi Min Mat Fac Low Low Zio Dee Matter Collected 2178 | 285 222 100 83 . 474 351 40 215 40 368 Remotely . | . . . . . . . . . . . Salvage Created 4013 | 40 398 189 236 130 1022 860 231 266 . 641 Parts 255 | 5 38 14 9 19 61 42 6 15 . 46 Haulers Intercepted 4 | . 1 . . . 2 1 . . . . Recyclers Shooed 1 | . . . . . 1 . . . . . Parts Field Recycled . | . . . . . . . . . . . Retrieved Matter . | . . . . . . . . . . . Parts Self-Destructed 23 | . . . . . . . 4 19 . . Prevented 6 | . . . . . . . 1 5 . . Kills | -11 -10 -10 -10 -9 -8 -7 -7 -7 -7 -7 ------- Run | Scr Mat Min Exi Min Mat Fac Low Low Zio Dee Combat Hostiles Destroyed 76 | . 10 9 . 7 20 13 2 7 . 8 Guns 69 | . 7 9 . 6 19 12 2 7 . 7 AOE 7 | . 3 . . 1 1 1 . . . 1 Classes Destroyed 13 | 1 4 . . 3 2 . . 1 . 2 Builder 4 | . . . . 1 2 1 . . . . Tunneler 3 | 2 . . . 1 . . . . . . Hauler 4 | . 1 . . . 2 1 . . . . Operator 2 | . . . . . 1 1 . . . . Watcher 7 | . 3 . . . 3 1 . . . . Swarmer 17 | . 6 3 . . 6 . 1 1 . . Grunt 34 | . 4 6 . 4 6 10 . 4 . . Brawler 2 | . . . . . . . . 2 . . Sentry 12 | . . . . 2 7 2 1 . . . Hunter 4 | . . . . . 3 1 . . . . Z-Light 5 | . . . . . . . . . . 5 Assembled 3 | . . . . 1 . . . . . 2 Fireman 1 | . . . . . . . . . . 1 Best Kill Streak 6 | 1 5 3 . 5 4 6 2 3 . 3 Combat Bots Only 5 | . 3 3 . 4 4 5 2 3 . 3 Max Kills in Single Turn 3 | 1 3 2 . 1 2 2 1 1 . 1 Gunslinging 1 | . . 1 . . . . . . . . Exploded 3 | . 3 . . 1 1 1 . . . 1 Melee . | . . . . . . . . . . . Uniques/NPCs Destroyed 1 | . . . . . . . . . . 1 Z-Imprinter (-7/Deep Caves) Combat | -11 -10 -10 -10 -9 -8 -7 -7 -7 -7 -7 -------- Run | Scr Mat Min Exi Min Mat Fac Low Low Zio Dee Damage Taken 6053 | . 243 403 36 160 889 698 145 234 . 3245 Core 4426 | . 198 321 28 133 741 528 112 168 . 2197 Absorbed by Shields 396 | . . . . . . 17 53 97 . 229 Redirected to Core 3500 | . 137 257 28 85 535 432 85 129 . 1812 Core Remaining (%) 95 | 100 . . . 91 94 . . . . . Volleys Fired 353 | 5 38 19 38 17 80 43 17 19 . 77 Largest 3 | 2 2 2 1 2 3 3 3 3 . 3 Hottest 156 | 60 60 60 50 100 103 108 108 108 . 156 Shots Fired 661 | 10 64 36 38 34 154 129 29 57 . 110 Gun 657 | 10 63 34 38 34 154 129 29 57 . 109 Cannon . | . . . . . . . . . . . Launcher 4 | . 1 2 . . . . . . . 1 Special . | . . . . . . . . . . . Kinetic 350 | 5 37 17 . . 87 86 12 38 . 68 Thermal 94 | 5 26 17 15 17 . . . . . 14 Explosive 4 | . 1 2 . . . . . . . 1 Electromagnetic 213 | . . . 23 17 67 43 17 19 . 27 Robot Hit Streak 16 | 4 10 7 6 10 16 9 7 11 . 9 Robot Miss Streak 9 | 1 4 2 2 2 4 3 2 6 . 9 Penetration Max 1 | . . . . . 1 1 . 1 . 1 Secondary Targets 10 | . 1 1 . . 4 3 . 1 . . Max Gunslinging Chain 1 | . 1 1 . . 1 1 . 1 . . Shots Hit Robots 423 | 6 37 24 27 22 108 78 20 37 . 64 Core Hits 214 | 2 20 17 11 11 48 42 9 19 . 35 Critical Hits 10 | . . . . 1 4 2 . . . 3 Critical Kills 3 | . . . . 1 1 1 . . . . Critical Parts Destroyed 4 | . . . . . 3 1 . . . . Melee Attacks 62 | . 5 . . . . . . . 57 . Impact 5 | . 5 . . . . . . . . . Slashing 57 | . . . . . . . . . 57 . Piercing . | . . . . . . . . . . . Sneak Attacks . | . . . . . . . . . . . Combat Hostiles . | . . . . . . . . . . . Follow-up Attacks . | . . . . . . . . . . . Damage Inflicted 8789 | 52 640 488 661 402 2277 1543 366 664 . 1696 Guns 7835 | 52 464 320 573 365 2124 1407 366 664 . 1500 Cannons . | . . . . . . . . . . . Explosions 954 | . 176 168 88 37 153 136 . . . 196 Melee . | . . . . . . . . . . . Ramming . | . . . . . . . . . . . Kinetic 4216 | 10 261 152 . . 1114 936 219 518 . 1006 Thermal 1463 | 42 203 168 309 176 153 136 . . . 276 Explosive 464 | . 176 168 . . . . . . . 120 Electromagnetic 2646 | . . . 352 226 1010 471 147 146 . 294 Impact . | . . . . . . . . . . . Slashing . | . . . . . . . . . . . Piercing . | . . . . . . . . . . . Highest Corruption 2 | . . . . . 2 . . . . . Average Corruption 2 | . . . . . 2 . . . . . Corruption Purged . | . . . . . . . . . . . Effects 8 | . . . . . 8 . . . . . Message Errors 3 | . . . . . 3 . . . . . Heat Flow Errors 3 | . . . . . 3 . . . . . Targeting Errors 2 | . . . . . 2 . . . . . Overload Shots . | . . . . . . . . . . . Overflow Damage 34 | . . . . . 11 23 . . . . Projectiles . | . . . . . . . . . . . Explosions 34 | . . . . . 11 23 . . . . Melee . | . . . . . . . . . . . Knockbacks . | . . . . . . . . . . . Impact . | . . . . . . . . . . . Kinetic . | . . . . . . . . . . . Secondary . | . . . . . . . . . . . Self-Inflicted Damage 149 | . . 42 36 23 48 . . . . . Shots 6 | . . 2 1 1 2 . . . . . Rammed . | . . . . . . . . . . . Targets Rammed . | . . . . . . . . . . . Kicked . | . . . . . . . . . . . Crushed . | . . . . . . . . . . . Highest Temperature 349 | 14 7 27 62 233 349 93 55 70 . 144 Average Temperature 60 | 8 3 12 21 85 106 31 26 31 . 45 Received Heat Transfer 1730 | . 57 153 . 33 297 279 47 72 . 792 Effects 1 | . . . . . 1 . . . . . Interference 1 | . . . . . 1 . . . . . Siege Activations . | . . . . . . . . . . . Robots Corrupted 3 | . . . 2 . 1 . . . . . Combat Hostiles 2 | . . . 2 . . . . . . . Parts Fried 7 | . . . 1 1 4 1 . . . . Impact Corruptions . | . . . . . . . . . . . Robots Melted . | . . . . . . . . . . . Combat Hostiles . | . . . . . . . . . . . Parts Melted 2 | . . . . . 1 . . . . 1 Heat Transferred 2424 | 100 450 350 495 296 250 150 . . . 333 Parts Sabotaged . | . . . . . . . . . . . Parts Stolen . | . . . . . . . . . . . Parts Stripped . | . . . . . . . . . . . Power Chain Reactions 6 | . . . 2 1 2 1 . . . . Missiles Intercepted . | . . . . . . . . . . . Alert | -11 -10 -10 -10 -9 -8 -7 -7 -7 -7 -7 ------- Run | Scr Mat Min Exi Min Mat Fac Low Low Zio Dee Peak Influence 947 | 10 339 295 . 143 885 947 . . . . Average Influence 374 | 4 156 192 . 84 517 712 . . . . Maximum Alert Level 3 | . 1 1 . . 3 3 . . . . Low Security (%) 40 | 100 66 53 . 100 10 . . . . . Level 1 14 | . 33 46 . . 12 . . . . . Level 2 25 | . . . . . 60 34 . . . . Level 3 19 | . . . . . 16 65 . . . . Level 4 . | . . . . . . . . . . . Level 5 . | . . . . . . . . . . . High Security . | . . . . . . . . . . . Max Security . | . . . . . . . . . . . Squads Dispatched 11 | . 1 2 . . 1 7 . . . . Investigation 8 | . 1 2 . . 1 4 . . . . Extermination . | . . . . . . . . . . . Reinforcement 1 | . . . . . . 1 . . . . Assault 1 | . . . . . . 1 . . . . Garrison 1 | . . . . . . 1 . . . . Intercept . | . . . . . . . . . . . Construction Impeded . | . . . . . . . . . . . Haulers Reinforced 1 | . . . . . . 1 . . . . Stealth | -11 -10 -10 -10 -9 -8 -7 -7 -7 -7 -7 --------- Run | Scr Mat Min Exi Min Mat Fac Low Low Zio Dee Distress Signals 3 | . . . . . 3 . . . . . Communications Jammed . | . . . . . . . . . . . Distress Signals . | . . . . . . . . . . . Times Spotted 119 | . 16 9 . 7 36 27 4 10 . 10 Peak Tracking Total 8 | . 4 3 . 2 7 7 4 8 . 3 Tactical Retreats 5 | . 1 . . . . 2 1 1 . . Traps | -11 -10 -10 -10 -9 -8 -7 -7 -7 -7 -7 ------- Run | Scr Mat Min Exi Min Mat Fac Low Low Zio Dee Traps Triggered 4 | . . . . . 1 3 . . . . Indirectly . | . . . . . . . . . . . Trap Hack Attempts . | . . . . . . . . . . . Triggered . | . . . . . . . . . . . Disarmed 5 | . . . . . 5 . . . . . Reprogrammed . | . . . . . . . . . . . Reused 1 | . . . . . . . . . . 1 Traps Extracted . | . . . . . . . . . . . Installed 4 | . . . . 1 . . 1 . . 2 Triggered 4 | . . . . . . . 1 3 . . Machines | -11 -10 -10 -10 -9 -8 -7 -7 -7 -7 -7 ---------- Run | Scr Mat Min Exi Min Mat Fac Low Low Zio Dee Machines Disabled 10 | . . . . 2 2 4 . . . 2 Max in Single Turn 1 | . . . . . . 1 . . . 1 Garrison Access 3 | . . . . . 1 2 . . . . Machines Sabotaged . | . . . . . . . . . . . Garrisons Compromised . | . . . . . . . . . . . Overloaded Fab Kills . | . . . . . . . . . . . Fab Network Shutdowns . | . . . . . . . . . . . Hacking | -11 -10 -10 -10 -9 -8 -7 -7 -7 -7 -7 --------- Run | Scr Mat Min Exi Min Mat Fac Low Low Zio Dee Machines Accessed 38 | . 9 1 2 . 13 12 . . 1 . Terminals 24 | . 8 1 . . 9 6 . . . . Fabricators 2 | . . . . . . 2 . . . . Repair Stations 3 | . 1 . . . 1 1 . . . . Recycling Units 1 | . . . . . 1 . . . . . Scanalyzers 2 | . . . . . 1 1 . . . . Garrison Access 3 | . . . . . 1 2 . . . . Total Hacks 159 | . 46 7 3 . 50 45 . . 8 . Successful 104 | . 30 3 3 . 38 22 . . 8 . Failed 52 | . 15 3 . . 11 23 . . . . Catastrophic 1 | . . . . . . 1 . . . . Database Lockouts 4 | . 1 1 . . 2 . . . . . Manual 78 | . 24 7 2 . 27 18 . . . . Terminals 121 | . 44 7 . . 40 30 . . . . Fabricators 9 | . . . . . . 9 . . . . Repair Stations 6 | . 2 . . . 3 1 . . . . Recycling Units 3 | . . . . . 3 . . . . . Scanalyzers 6 | . . . . . 3 3 . . . . Garrison Access 3 | . . . . . 1 2 . . . . Terminal Hacks 63 | . 15 2 3 . 21 14 . . 8 . Record 2 | . . . 2 . . . . . . . Part Schematic 10 | . . . . . . 2 . . 8 . Robot Analysis 14 | . 3 1 . . 5 5 . . . . Prototype ID Bank 10 | . 4 . . . 3 3 . . . . Level Access Points 2 | . 1 . . . 1 . . . . . Branch Access Points 3 | . 1 . . . 1 1 . . . . Terminal Index 4 | . 1 1 . . 2 . . . . . Fabricator Index 1 | . . . . . . 1 . . . . Locate Traps 6 | . 2 . . . 2 2 . . . . Disarm Traps 2 | . . . . . 2 . . . . . Recall Investigation 1 | . . . . . 1 . . . . . Hauler Manifests 2 | . 1 . . . 1 . . . . . Registered Components 2 | . 1 . . . 1 . . . . . Zone Layout 3 | . 1 . . . 2 . . . . . EX-Prototype ID Bank 1 | . . . 1 . . . . . . . Fabricator Hacks 3 | . . . . . . 3 . . . . Load Schematic 2 | . . . . . . 2 . . . . Build 1 | . . . . . . 1 . . . . Repair Station Hacks 6 | . 2 . . . 3 1 . . . . Scan Component 2 | . 1 . . . 1 . . . . . Repair 2 | . 1 . . . 1 . . . . . Refit 2 | . . . . . 1 1 . . . . Recycling Unit Hacks 1 | . . . . . 1 . . . . . Retrieve Components 1 | . . . . . 1 . . . . . Scanalyzer 4 | . . . . . 2 2 . . . . Insert Component 2 | . . . . . 1 1 . . . . Analyze 2 | . . . . . 1 1 . . . . Garrison Access Hacks 3 | . . . . . 1 2 . . . . Seal Access 3 | . . . . . 1 2 . . . . Unauthorized Hacks 24 | . 13 1 . . 10 . . . . . Terminals 23 | . 13 1 . . 9 . . . . . Track 8 | . 4 1 . . 3 . . . . . Botnet 13 | . 8 . . . 5 . . . . . Operators 2 | . 1 . . . 1 . . . . . Fabricators . | . . . . . . . . . . . Repair Stations . | . . . . . . . . . . . Recycling Units 1 | . . . . . 1 . . . . . Mask 1 | . . . . . 1 . . . . . Scanalyzers . | . . . . . . . . . . . Garrison Access . | . . . . . . . . . . . Data Cores Recovered 2 | . . . . . 1 1 . . . . Used . | . . . . . . . . . . . Hacking Detections 21 | . 5 1 . . 6 9 . . . . Full Trace Events 5 | . 1 1 . . . 3 . . . . Feedback Events . | . . . . . . . . . . . Feedback Blocked . | . . . . . . . . . . . Robot Schematics Acquired . | . . . . . . . . . . . Robots Built . | . . . . . . . . . . . Matter . | . . . . . . . . . . . Time . | . . . . . . . . . . . Total Robot Build Rating . | . . . . . . . . . . . Part Schematics Acquired 12 | . . . . . 1 3 . . 8 . Parts Built 2 | . . . . . . 2 . . . . Matter 168 | . . . . . . 168 . . . . Time 42 | . . . . . . 42 . . . . Total Part Build Rating 8 | . . . . . . 8 . . . . Parts Repaired 2 | . 1 . . . 1 . . . . . Time 102 | . 38 . . . 64 . . . . . Parts Recycled . | . . . . . . . . . . . Recycled Matter . | . . . . . . . . . . . Retrieved Matter . | . . . . . . . . . . . Retrieved Components 9 | . . . . . 9 . . . . . Parts Scanalyzed 2 | . . . . . 1 1 . . . . Part Schematics Acquired 2 | . . . . . 1 1 . . . . Parts Damaged 1 | . . . . . . 1 . . . . Bothacking | -11 -10 -10 -10 -9 -8 -7 -7 -7 -7 -7 ------------ Run | Scr Mat Min Exi Min Mat Fac Low Low Zio Dee Used RIF Installer . | . . . . . . . . . . . Robots Hacked . | . . . . . . . . . . . Non-combat . | . . . . . . . . . . . Combat . | . . . . . . . . . . . Robot Hacks Applied . | . . . . . . . . . . . Relay Couplers Released . | . . . . . . . . . . . Robots Rewired 6 | . . . 4 . . 1 . 1 . . Allies Hacked . | . . . . . . . . . . . Hacks Repelled . | . . . . . . . . . . . Allies | -11 -10 -10 -10 -9 -8 -7 -7 -7 -7 -7 -------- Run | Scr Mat Min Exi Min Mat Fac Low Low Zio Dee Total Allies 13 | . . . 4 3 . 1 . 1 4 . Largest Group 6 | . . . 4 6 6 1 . 1 5 5 Highest-Rated Group 118 | . . . 58 90 90 17 . 20 118 118 Highest-Rated Ally 31 | . . . 21 21 21 17 . 20 31 31 Total Orders . | . . . . . . . . . . . Ally Attacks 70 | . . . . 12 37 . . 7 . 14 Total Damage 1101 | . . . . 164 594 . . 117 . 226 Kills 12 | . . . . 1 8 . . 1 . 2 Allies Corrupted 2 | . . . . . 2 . . . . . Allies Melted . | . . . . . . . . . . . Intel | -11 -10 -10 -10 -9 -8 -7 -7 -7 -7 -7 ------- Run | Scr Mat Min Exi Min Mat Fac Low Low Zio Dee Robot Analysis Total 14 | . 3 1 . . 5 5 . . . . Derelict Logs Recovered 4 | . . 1 . 1 . . . 1 1 . Drone Launches . | . . . . . . . . . . . Drone Recoveries . | . . . . . . . . . . . Exploration | -11 -10 -10 -10 -9 -8 -7 -7 -7 -7 -7 ------------- Run | Scr Mat Min Exi Min Mat Fac Low Low Zio Dee Turns Passed 5160 | 75 425 307 611 427 716 588 220 341 726 724 Spaces Moved 8624 | 48 542 598 1133 675 1115 1148 493 400 1560 912 Core 10 | 10 . . . . . . . . . . Treads 3 | 3 . . . . . . . . . . Legs . | . . . . . . . . . . . Wheels 43 | 35 8 . . . . . . . . . Hover 772 | . 95 . . . . . . . . 677 Flight 7796 | . 439 598 1133 675 1115 1148 493 400 1560 235 Fastest Speed 26 | 50 37 37 37 37 29 26 26 26 26 26 Average Speed 32 | 78 40 37 37 37 31 27 26 26 26 42 Slowest Speed 160 | 160 80 37 37 37 37 99 26 26 26 96 Overloaded Moves . | . . . . . . . . . . . Propulsion Burnouts . | . . . . . . . . . . . Robots Hopped 61 | . 3 9 2 14 15 15 2 1 . . Cave-ins Triggered . | . . . . . . . . . . . Exploration Rate (%) 71 | 3 88 97 92 96 83 26 64 64 88 82 Regions Visited 10 Branch Regions 7 Pre-discovered Areas 5 | . . . 1 1 . . . 1 2 . Known Exits Taken 3 | . 1 . . . 1 1 . . . . Unknown Exits Taken 7 | 1 . 1 1 1 . . 1 1 1 . Scrap Searched 12 | . . 1 . 3 . . 2 2 4 . Spaces Dug 4 | . 1 . . . . . . . 3 . Terrain Destroyed 90 | . 10 22 1 4 14 10 . . 3 26 Melee 4 | . 1 . . . . . . . 3 . Projectile 7 | . . . . . 2 2 . . . 3 AOE 79 | . 9 22 1 4 12 8 . . . 23 Actions | -11 -10 -10 -10 -9 -8 -7 -7 -7 -7 -7 --------- Run | Scr Mat Min Exi Min Mat Fac Low Low Zio Dee Total 10250 | 71 670 639 1284 805 1354 1327 560 599 1794 1147 Wait 875 | 12 54 8 69 113 92 81 44 153 168 81 Move 8498 | 47 535 580 1128 646 1087 1119 488 397 1559 912 Hop 55 | . 3 8 2 14 12 13 2 1 . . Pick Up 32 | . 8 1 1 3 6 3 1 . 2 7 Fast Attach 54 | 7 6 . 6 . 12 4 . 4 2 13 Attach 8 | . . . . . 2 2 . . 1 3 Detach 2 | . . . . . . 2 . . . . Swap 21 | . 4 4 1 . 4 3 . . 1 4 Drop 74 | . 11 3 6 3 17 7 1 3 4 19 Fire 353 | 5 38 19 38 17 80 43 17 19 . 77 Melee 62 | . 5 . . . . . . . 57 . Ram . | . . . . . . . . . . . Kick . | . . . . . . . . . . . Crush . | . . . . . . . . . . . Escape Stasis 18 | . . . . . . 18 . . . . Rewire 34 | . . . 26 . . 4 . 4 . . Trap 4 | . . . . 1 . . 1 . . 2 Miscellaneous 160 | . 6 16 7 8 42 28 6 18 . 29 Route ------- -11/Scrapyard -10/Materials (discovered 5 exits: *Mat x3 / *Min x2) -10/Mines (discovered 3 exits: *Mat x2 / *Exi) -10/Exiles (discovered 2 exits: [*Min x2]) -9/Mines (discovered 2 exits: *Mat x2) -8/Materials (discovered 3 exits: *Fac x3) -7/Factory (discovered 4 exits: [*Fac] / Sto / *Low x2) -7/Lower Caves -7/Lower Caves (discovered 2 exits: [Fac] / *Zio) -7/Zion (discovered 2 exits: [*Dee] / [*Pro]) -7/Deep Caves History --------- Turn | Location | Event 2 | -11/Scrapyard | Upgraded with Propulsion slot (x1) 2 | -11/Scrapyard | Upgraded with Utility slot (x1) 2 | -11/Scrapyard | Upgraded with Weapon slot (x1) 7 | -11/Scrapyard | Discovered new exit (range 16) 76 | -11/Scrapyard | Entered Materials 124 | -10/Materials | Central database locked down 187 | -10/Materials | Discovered new exit (range 12) 188 | -10/Materials | Identified exit to Mines 269 | -10/Materials | Discovered new exit (range 7) 273 | -10/Materials | Identified exit to Materials 418 | -10/Materials | Repaired Lgt. Nuclear Core 501 | -10/Materials | Entered Mines 503 | -10/Mines | Reached level 2 526 | -10/Mines | Build established: Scavenger-Mutant 548 | -10/Mines | Deemed a non-threat by the Exiles lab entrance 548 | -10/Mines | Discovered new exit (range 5) 588 | -10/Mines | Discovered exit to Materials (range 10) 591 | -10/Mines | A weapon hastily lodged in a ceiling crevice suddenly fell to the ground 686 | -10/Mines | Discovered exit to Materials (range 4) 777 | -10/Mines | Central database locked down 808 | -10/Mines | Entered Exiles 808 | -10/Exiles | Found Exiles lab destroyed 810 | -10/Exiles | Reached level 3 813 | -10/Exiles | Discovered new exit (range 15) 869 | -10/Exiles | Opened EX-Vault 873 | -10/Exiles | Found Modified TNC 894 | -10/Exiles | Learned location of Zion (-7) 952 | -10/Exiles | Upgraded with Utility slot (x2) 1323 | -10/Exiles | Discovered new exit (range 15) 1419 | -10/Exiles | Entered Mines 1419 | -9/Mines | Accompanied by 4 allies 1459 | -9/Mines | Received a Rocket Launcher from a helpful Derelict 1482 | -9/Mines | Discovered new exit (range 12) 1531 | -9/Mines | Found a hidden stash of uninstalled traps 1558 | -9/Mines | Build established: Hacker-Scout 1595 | -9/Mines | Excavation squad dispatched 1595 | -9/Mines | A large section of the Mines collapsed 1767 | -9/Mines | Assisted by bots powering up and referring to "LRC-V3" 1818 | -9/Mines | Discovered new exit (range 9) 1846 | -9/Mines | Entered Materials 1846 | -8/Materials | Accompanied by 6 allies 1848 | -8/Materials | Reached level 4 1848 | -8/Materials | Upgraded with Propulsion slot (x1) 1880 | -8/Materials | Reached level 5 1900 | -8/Materials | Upgraded with Utility slot (x1) 1964 | -8/Materials | Reached level 6 2084 | -8/Materials | Upgraded with Weapon slot (x1) 2087 | -8/Materials | Central database locked down 2116 | -8/Materials | Identified exit to Factory 2187 | -8/Materials | Reached level 7 2198 | -8/Materials | Upgraded with Power slot (x1) 2405 | -8/Materials | Repaired Broken Imp. Flight Unit 2549 | -8/Materials | Reached level 8 2552 | -8/Materials | Upgraded with Utility slot (x1) 2562 | -8/Materials | Entered Factory 2563 | -7/Factory | Identified exit to Storage 2564 | -7/Factory | Reached level 9 2626 | -7/Factory | Discovered new exit (range 8) 2676 | -7/Factory | Core integrity fell below 50% 2825 | -7/Factory | Reached level 10 2861 | -7/Factory | Upgraded with Propulsion slot (x1) 2861 | -7/Factory | Upgraded with Utility slot (x1) 2878 | -7/Factory | Identified exit to Lower Caves 2913 | -7/Factory | Garrison activated, responded to threat 2954 | -7/Factory | Discovered new exit (range 12) 2962 | -7/Factory | First assault squad dispatched 3074 | -7/Factory | Fabricated Powered Armor? 3150 | -7/Factory | Entered Lower Caves 3246 | -7/Lower Caves | Encountered a Warlord checkpoint 3327 | -7/Lower Caves | Spotted B-75 Beast 3334 | -7/Lower Caves | Reached level 11 3348 | -7/Lower Caves | Attracted the attention of an 0b10 checkpoint 3367 | -7/Lower Caves | Discovered new exit (range 13) 3370 | -7/Lower Caves | Entered another Lower Caves area 3373 | -7/Lower Caves | Discovered new exit (range 14) 3403 | -7/Lower Caves | Attracted the attention of an 0b10 checkpoint 3466 | -7/Lower Caves | Reached level 12 3475 | -7/Lower Caves | Upgraded with Utility slot (x1) 3519 | -7/Lower Caves | Encountered a Warlord checkpoint 3565 | -7/Lower Caves | Discovered new exit (range 15) 3711 | -7/Lower Caves | Entered Zion 3711 | -7/Zion | Accompanied by 1 ally 3721 | -7/Zion | Discovered new exit (range 12) 3798 | -7/Zion | Gained Derelict followers 3823 | -7/Zion | Learned Factory emergency access door positions 3830 | -7/Zion | Given A8's code to call for help 3868 | -7/Zion | Learned location of Quarantine (-3) 3974 | -7/Zion | Discovered new exit (range 10) 4273 | -7/Zion | Saw the warning signs outside the Deep Caves entrance 4437 | -7/Zion | Entered Deep Caves 4437 | -7/Deep Caves | Accompanied by 5 allies 4439 | -7/Deep Caves | Reached level 13 4530 | -7/Deep Caves | Attacked by Z-Imprinter 4569 | -7/Deep Caves | Core integrity fell below 20% 4569 | -7/Deep Caves | Destroyed Z-Imprinter 4750 | -7/Deep Caves | Found Prototype Protection 4750 | -7/Deep Caves | Identified Zio. Heavy Carapace 5028 | -7/Deep Caves | Found Surveybot 24 Chip 5030 | -7/Deep Caves | Found Surveybot 24 Scanner 5060 | -7/Deep Caves | Spotted as-88456 5161 | -7/Deep Caves | Destroyed by as-88456 with Assembled Focal Cannon Last Messages --------------- 05028_ Acquired Surveybot 24 Chip. 05030_ Acquired Surveybot 24 Scanner. 05043_ HB-EWQ(M) destroyed. 05050_ 5P-LFV(s) destroyed. 05054_ Used Protomatter to restore core integrity (+66, depleted) 05062_ UM-POV(l) destroyed. 05068_ as-88456: "DSI9AT1D G8OHIBQ29FWG 26R186 QD12WHW8W33 TDK1 81FTS" 05108_ Slug penetrates Wall. 05115_ as-88456 misfires. 05115_ as-88456 suffers critical hit. 05118_ Arc Projector destroyed. 05124_ Slug penetrates as-88456. 05125_ Zio. Heavy Carapace destroyed. 05128_ Slug penetrates as-88456. 05131_ Zio. Laser-M destroyed. 05133_ Slug penetrates as-88456. 05149_ Zio. Glidesys I destroyed. 05149_ Slug penetrates as-88456. 05157_ Survey Way Station disabled. 05158_ as-88456 misfires. Map ----- +----------------------------------------------------+ | ##?## ???# ##???## ##?????????# | | ########???# #???## #???#####??# | | #????????# ##### ##?## ##### | | ###????????# ### #### | | ##?????????# #?### | | #?????????######## #???# | | #??????????????## ## ##???# | | #?????????????## #### #### #????# | | ! #???????####### ##?# ##??### #????# | | #?####### ## ## #?????? #???# | | ### #?????? #??## | | ## #?????? ###?## | | ## ##?????####### | | # # ##?????## | | # ### ### ##??????# | | * [ # # # #######???????# | | !%= # #%# ##???????????## | | * ! ^ ##??####?????# ## | | ### ###;; ??????# ## | | % ###?## ########## # | | #######????##G | | #??????????#; | | ##??????????#; ######### | | # # #????????????# ## | | ## ## ##????????????## ##?## | | ?# ####??????????????##;;@ ;#################???? | | ?# ???????????????????##;;;;;#???????????????????? | | ??#????????????????????# ###???????????????????? | | | | | | | | | | | | | | | | | | | | | | | | | | | | | | | | | | | | | | | | | | | | | +----------------------------------------------------+ Best States ------------- Heat Dissipation 107 Energy Generation 54 Energy Capacity 1100 Matter Stores 300 Matter Capacity 300 Sight Range 17 Robot Scan Range 12 Terrain Scan Range 20 Terrain Scan Density 310 Armor Coverage 1200 Evasion (%) 64 Core Analysis 6 Recoil Reduction 1 Salvage Targeting 2 Offensive Hacking 16 Defensive Hacking 27 Item Schematics ----------------- Mak. Laser | -8/Materials | Scanalyzed Mni. Drone Bay | -7/Factory | Hacked Powered Armor | -7/Factory | Hacked Mak. Power Source | -7/Factory | Scanalyzed Beamcaster | -7/Zion | Free Hvy. Beamcaster | -7/Zion | Free Barrage Gun | -7/Zion | Free Battle Cannon | -7/Zion | Free Slug Cannon | -7/Zion | Free Flamer | -7/Zion | Free Plasma Flamer | -7/Zion | Free Phasing Sabre | -7/Zion | Free Robot Schematics ------------------ None Fabricated ------------ Powered Armor | x2 | -7/Factory Alien Tech Used ----------------- None Achievements -------------- None Challenges ------------ None RPGLIKE | -11 -10 -10 -10 -9 -8 -7 -7 -7 -7 -7 --------- Run | Scr Mat Min Exi Min Mat Fac Low Low Zio Dee Levels Raised 12 | . . 1 1 . 5 2 1 1 . 1 XP Earned 21791 | 3000 1320 1630 200 1190 6207 3950 709 1435 650 1500 XP Spent 20980 | 3000 . 750 1900 . 7445 3400 . 2300 . 2185 Upgrades 55 | 12 . 1 2 . 17 3 . 1 . 19 Power Slot 1 | . . . . . 1 . . . . . Propulsion Slot 3 | 1 . . . . 1 1 . . . . Utility Slot 7 | 1 . . 2 . 2 1 . 1 . . Weapon Slot 2 | 1 . . . . 1 . . . . . Core Integrity 19 | . . . . . . . . . . 19 Heat Dissipation 5 | 1 . . . . 4 . . . . . Energy Generation 1 | . . . . . . 1 . . . . Mass Support 1 | 1 . . . . . . . . . . Inventory Capacity 4 | 2 . 1 . . 1 . . . . . Sight Range 1 | 1 . . . . . . . . . . Sensor Range 6 | 1 . . . . 5 . . . . . Terrain Scan Density 3 | 1 . . . . 2 . . . . . Hack Attack % 1 | 1 . . . . . . . . . . Hack Defense % 1 | 1 . . . . . . . . . . Protomatter Created 1381 | . 45 116 139 201 350 186 45 132 . 167 Integrity Restored 3395 | . 130 348 134 130 880 607 133 388 . 645 Core 2874 | . 111 348 60 107 762 449 112 280 . 645 Parts 521 | . 19 . 74 23 118 158 21 108 . . Protomatter Decayed 461 | . . . 44 218 80 26 . 93 . . Game ------ Seed MetafiberSkeletonScythe Manual? 0 Play Time 01:58:09 Cumulative 207.3 hours Start 2020.09.08 @ 14:16:16 End 2020.09.09 @ 02:25:29 Sessions 5 Manual Loads 0 Difficulty Rogue Special Mode Winter2019/RPGLIKE Game No. 83 Rogue 83 Adventurer 0 Explorer 0 Win Type - Total 3 Types 2/0/0/1/0/0/0 Lore% 82 Gallery% 78 Achievement% 68 Wizard Run 0 Options --------- ASCII 0 Keyboard 0 Movement Numpad Keybinds 0 Fullscreen 1 Font 18/SmallcapsGlow Map View 76x50 Tactical HUD 1 Map Filters NONE Filters NONE Steam 1 RUN: 8f2955b1-0cfb-4332-8dc9-e68b50482442